fUSD/lending_fUSD_20250306
["ID","MTS","AMOUNT","RATE_DAILY","PERIOD"]
[355540747,1741247435299,-500.0,0.00011558,2]
[355540748,1741247435309,-500.0,0.00011558,2]
[355540749,1741247435319,-500.0,0.00011558,2]
[355540750,1741247435328,-500.0,0.00011558,2]
[355540751,1741247435337,-500.0,0.00011558,2]
[355540752,1741247435347,-501.31796272,0.00011558,2]
[355540753,1741247435357,-500.0,0.00011558,2]
[355540754,1741247435367,-500.0,0.00011558,2]
[355540755,1741247435377,-698.29,0.00011558,2]
[355540756,1741247435387,-500.0,0.00011558,2]
[355540757,1741247435396,-500.0,0.00011558,2]
[355540758,1741247435406,-500.0,0.00011558,2]
[355540759,1741247435415,-500.0,0.00011558,2]
[355540760,1741247435426,-500.0,0.00011558,2]
[355540761,1741247435435,-551.84435973,0.00011558,2]
[355540762,1741247435445,-526.72,0.00011558,2]
[355540763,1741247435454,-501.36384016,0.00011558,2]
[355540764,1741247435463,-500.0,0.00011558,2]
[355540765,1741247435472,-500.0,0.00011558,2]
[355540766,1741247435481,-500.0,0.00011558,2]
[355540767,1741247435491,-702.65,0.00011558,2]
[355540768,1741247435500,-509.33296802,0.00011558,2]
[355540769,1741247435508,-500.0,0.00011558,2]
[355540770,1741247435517,-500.0,0.00011558,2]
[355540771,1741247435526,-500.0,0.00011558,2]
[355540772,1741247435535,-500.0,0.00011558,2]
[355540773,1741247435544,-369.84979319,0.00011558,2]
[355540774,1741247435554,-500.0,0.00011558,2]
[355540775,1741247435563,-766.93,0.00011558,2]
[355540776,1741247435572,-500.0,0.00011558,2]
[355540777,1741247435581,-533.85262723,0.00011558,2]
[355540778,1741247435590,-513.09652697,0.00011558,2]
[355540779,1741247435600,-500.0,0.00011558,2]
[355540780,1741247435609,-500.0,0.00011558,2]
[355540781,1741247435619,-500.0,0.00011558,2]
[355540782,1741247435628,-500.0,0.00011558,2]
[355540783,1741247435637,-500.0,0.00011558,2]
[355540784,1741247435647,-504.03916961,0.00011558,2]
[355540785,1741247435657,-500.0,0.00011558,2]
[355540786,1741247435667,-503.26169479,0.00011558,2]
[355540787,1741247435677,-500.0,0.00011558,2]
[355540788,1741247435686,-653.64,0.00011558,2]
[355540789,1741247435695,-500.0,0.00011558,2]
[355540790,1741247435705,-500.0,0.00011558,2]
[355540791,1741247435715,-781.85,0.00011558,2]
[355540792,1741247435727,-500.0,0.00011558,2]
[355540793,1741247435738,-500.0,0.00011558,2]
[355540794,1741247435747,-500.0,0.00011558,2]
[355540795,1741247435757,-500.0,0.00011558,2]
[355540796,1741247435767,-500.0,0.00011558,2]
[355540797,1741247435775,-512.25405869,0.00011558,2]
[355540798,1741247435784,-500.0,0.00011558,2]
[355540799,1741247435793,-739.84,0.00011558,2]
[355540800,1741247435802,-184.26672978,0.00011558,2]
[355540801,1741247435813,-326.32774715,0.00011558,2]
[355540802,1741247435823,-500.0,0.00011558,2]
[355540803,1741247435832,-501.46608816,0.00011558,2]
[355540804,1741247435841,-500.0,0.00011558,2]
[355540805,1741247435850,-500.0,0.00011558,2]
[355540806,1741247435858,-695.32,0.00011558,2]
[355540807,1741247435867,-500.0,0.00011558,2]
[355540808,1741247435876,-500.0,0.00011558,2]
[355540809,1741247435885,-797.31,0.00011558,2]
[355540810,1741247435894,-500.00399997,0.00011558,2]
[355540811,1741247435903,-170.6256772,0.00011558,2]
[355540812,1741247435911,-500.0,0.00011558,2]
[355540813,1741247435921,-500.0,0.00011558,2]
[355540814,1741247435928,-501.71942783,0.00011558,2]
[355540815,1741247435937,-675.5,0.00011558,2]
[355540816,1741247435945,-594.18996185,0.00011558,2]
[355540817,1741247435952,-500.0,0.00011558,2]
[355540818,1741247435960,-500.0,0.00011558,2]
[355540819,1741247435967,-500.0,0.00011558,2]
[355540820,1741247435975,-500.0,0.00011558,2]
[355540821,1741247435984,-500.0,0.00011558,2]
[355540822,1741247435993,-503.31161655,0.00011558,2]
[355540823,1741247436003,-507.85599243,0.00011558,2]
[355540824,1741247436013,-670.48,0.00011558,2]
[355540825,1741247436022,-500.0,0.00011558,2]
[355540826,1741247436032,-500.0,0.00011558,2]
[355540827,1741247436041,-720.92,0.00011558,2]
[355540828,1741247436051,-500.0,0.00011558,2]
[355540829,1741247436061,-532.26,0.00011558,2]
[355540830,1741247436071,-500.0,0.00011558,2]
[355540831,1741247436080,-505.14668258,0.00011558,2]
[355540832,1741247436089,-616.75,0.00011558,2]
[355540833,1741247436098,-500.0,0.00011558,2]
[355540834,1741247436107,-500.0,0.00011558,2]
[355540835,1741247436116,-500.0,0.00011558,2]
[355540836,1741247436133,-500.0,0.00011558,2]
[355540837,1741247436141,-500.0,0.00011558,2]
[355540838,1741247436150,-537.98394118,0.00011558,2]
[355540839,1741247436159,-515.76,0.00011558,2]
[355540840,1741247436167,-2881.78,0.00011558,2]
[355540841,1741247436176,-1129.23,0.00011558,2]
[355540842,1741247436184,-500.0,0.00011558,2]
[355540843,1741247436193,-500.0,0.00011558,2]
[355540844,1741247436202,-500.0,0.00011558,2]
[355540845,1741247436210,-508.42529559,0.00011558,2]
[355540846,1741247436219,-512.64424435,0.00011558,2]
[355540847,1741247436227,-494.4369615,0.00011558,2]
[355540848,1741247436235,-500.0,0.00011558,2]
[355540849,1741247436244,-671.04,0.00011558,2]
[355540850,1741247436253,-504.40238186,0.00011558,2]
[355540851,1741247436262,-739.0,0.00011558,2]
[355540852,1741247436271,-500.0,0.00011558,2]
[355540853,1741247436279,-1107.95,0.00011558,2]
[355540854,1741247436288,-500.0,0.00011558,2]
[355540855,1741247436297,-570.69763592,0.00011558,2]
[355540856,1741247436305,-673.28,0.00011558,2]
[355540857,1741247436315,-2999.76,0.00011558,2]
[355540858,1741247436324,-500.0,0.00011558,2]
[355540859,1741247436333,-3473.79,0.00011558,2]
[355540860,1741247436343,-500.0,0.00011558,2]
[355540861,1741247436352,-795.79,0.00011558,2]
[355540862,1741247436362,-521.95003718,0.00011558,2]
[355540863,1741247436371,-500.0,0.00011558,2]
[355540864,1741247436380,-500.0,0.00011558,2]
[355540865,1741247436389,-1340.7,0.00011558,2]
[355540866,1741247436397,-475.82132969,0.00011558,2]
[355540867,1741247436408,-500.0,0.00011558,2]
[355540868,1741247436419,-500.0,0.00011558,2]
[355540869,1741247436431,-500.0,0.00011558,2]
[355540870,1741247436444,-501.0,0.00011558,2]
[355540871,1741247436456,-2973.35,0.00011558,2]
[355540872,1741247436467,-500.0,0.00011558,2]
[355540873,1741247436477,-475.44044458,0.00011558,2]
[355540874,1741247436487,-716.29,0.00011558,2]
[355540875,1741247436498,-500.0,0.00011558,2]
[355540876,1741247436510,-1159.59,0.00011558,2]
[355540877,1741247436522,-500.0,0.00011558,2]
[355540878,1741247436533,-500.0,0.00011558,2]
[355540879,1741247436545,-500.0,0.00011558,2]
[355540880,1741247436557,-515.47702681,0.00011558,2]
[355540881,1741247436570,-500.0,0.00011558,2]
[355540882,1741247436582,-560.31332206,0.00011558,2]
[355540883,1741247436593,-1330.7859335,0.00011558,2]
[355540884,1741247436610,-431.8440665,0.00011558,2]
[355540885,1741247436622,-500.0,0.00011558,2]
[355540886,1741247436632,-681.58,0.00011558,2]
[355540887,1741247436642,-500.0,0.00011558,2]
[355540888,1741247436652,-2298.17,0.00011558,2]
[355540889,1741247436664,-500.0,0.00011558,2]
[355540890,1741247436676,-500.0,0.00011558,2]
[355540891,1741247436687,-500.0,0.00011558,2]
[355540892,1741247436699,-1149.55,0.00011558,2]
[355540893,1741247436710,-349.65012953,0.00011558,2]
[355540894,1741247436722,-500.0,0.00011558,2]
[355540895,1741247436736,-704.61,0.00011558,2]
[355540896,1741247436748,-500.0,0.00011558,2]
[355540897,1741247436760,-1195.18,0.00011558,2]
[355540898,1741247436772,-500.0,0.00011558,2]
[355540899,1741247436784,-500.0,0.00011558,2]
[355540900,1741247436795,-500.0,0.00011558,2]
[355540901,1741247436809,-574.09,0.00011558,2]
[355540902,1741247436821,-610.65,0.00011558,2]
[355540903,1741247436833,-1562.61,0.00011558,2]
[355540904,1741247436844,-506.12700655,0.00011558,2]
[355540905,1741247436855,-500.0,0.00011558,2]
[355540906,1741247436868,-1431.41,0.00011558,2]
[355540907,1741247436879,-630.51,0.00011558,2]
[355540908,1741247436890,-3591.72,0.00011558,2]
[355540909,1741247436902,-500.0,0.00011558,2]
[355540910,1741247436913,-500.0,0.00011558,2]
[355540911,1741247436926,-500.0,0.00011558,2]
[355540912,1741247436937,-549.2,0.00011558,2]
[355540913,1741247436948,-747.38,0.00011558,2]
[355540914,1741247436959,-1054.97,0.00011558,2]
[355540915,1741247436970,-500.0,0.00011558,2]
[355540916,1741247436981,-672.47,0.00011558,2]
[355540917,1741247436990,-533.63300267,0.00011558,2]
[355540918,1741247437000,-645.6,0.00011558,2]
[355540919,1741247437011,-500.0,0.00011558,2]
[355540920,1741247437021,-500.0,0.00011558,2]
[355540921,1741247437033,-500.0,0.00011558,2]
[355540922,1741247437046,-500.0,0.00011558,2]
[355540923,1741247437059,-867.38,0.00011558,2]
[355540924,1741247437069,-500.0,0.00011558,2]
[355540925,1741247437078,-500.0,0.00011558,2]
[355540926,1741247437088,-500.0,0.00011558,2]
[355540927,1741247437098,-248.55971175,0.00011558,3]
[355540928,1741247437108,-18082.2102,0.00011558,2]
[355540929,1741247437119,-150.0,0.00011559,2]
[355540930,1741247437131,-150.0,0.00011577,2]
[355540931,1741247437142,-150.0,0.0001158,2]
[355540932,1741247437154,-150.0,0.00011586,2]
[355540933,1741247437165,-150.0,0.00011588,2]
[355540934,1741247437176,-176.09880414,0.00011607,2]
[355540935,1741247437186,-150.0,0.00011608,2]
[355540936,1741247437196,-150.0,0.0001161,2]
[355540937,1741247437207,-192.86655161,0.00011614,2]
[355540938,1741247437217,-736.08474722,0.00011614,2]
[355540939,1741247437228,-150.0,0.00011634,2]
[355540940,1741247437245,-150.0,0.00011635,2]
[355540941,1741247437271,-150.0,0.00011637,2]
[355540942,1741247437284,-671.04,0.00011655,2]
[355540943,1741247437296,-671.04,0.00011655,2]
[355540944,1741247437308,-671.04,0.00011655,2]
[355540945,1741247437321,-26153.47453917,0.00011656,2]
[355540946,1741247437337,-508.08865735,0.00011656,2]
[355540947,1741247437352,-520.41993916,0.00011656,2]
[355540951,1741247437840,-500.0,0.00011558,2]
[355540952,1741247437850,-709.496,0.00011656,2]
[355540954,1741247438756,-232.07260876,0.00011557,2]
[355540955,1741247438767,-99143.88703302,0.00011656,2]
[355540956,1741247438781,-37004.86202383,0.00011656,2]
[355540957,1741247438802,-14168.84209087,0.00011656,2]
[355540958,1741247438885,-501.29659805,0.00011656,2]
[355540959,1741247438938,-156621.36157444,0.00011656,2]
[355540962,1741247439945,-500.0,0.00011556,2]
[355540963,1741247439956,-500.0,0.00011558,2]
[355540964,1741247439966,-3403.8120149,0.00011656,2]
[355540965,1741247439978,-1746.3324078,0.00011656,2]
[355540966,1741247439990,-4980.16031994,0.00011656,2]
[355540967,1741247440001,-11148.5019612,0.00011656,2]
[355540968,1741247440013,-8259.4512,0.00011656,2]
[355540969,1741247440025,-2267.16292566,0.00011656,2]
[355540970,1741247440054,-500.0,0.00011556,2]
[355540971,1741247440064,-220.30889142,0.00011656,2]
[355540972,1741247440076,-258.26645864,0.00011656,2]
[355540973,1741247440087,-717.18470996,0.00011656,2]
[355540974,1741247440151,-2299.19999989,0.00011656,2]
[355540976,1741247440378,-660.07913423,0.00011656,2]
[355540978,1741247440390,-475.8703,0.00011656,2]
[355540998,1741247442805,-221.93155173,0.00011556,2]
[355540999,1741247442815,-500.0,0.00011557,2]
[355541000,1741247442824,-2641.87515641,0.00011656,2]
[355541006,1741247442894,-758.57759602,0.00010923,2]
[355541007,1741247443007,-3260.18610398,0.00010923,2]
[355541008,1741247443016,-80527.0779681,0.00011656,2]
[355541009,1741247443027,-638.55,0.00011656,2]
[355541010,1741247443090,-520.74992602,0.00011656,2]
[355541011,1741247443102,-617.43849497,0.00011656,2]
[355541020,1741247445753,-268.987887,0.00011557,2]
[355541021,1741247445764,-232.60320293,0.00011557,2]
[355541022,1741247445775,-86.27714577,0.00011557,2]
[355541024,1741247491635,600.0,0.0001018,2]
[355541025,1741247623854,166.13,0.00010834,2]
[355541026,1741247672372,1000.0,0.00010836,2]
[355541027,1741247757159,517.54,0.00010721,2]
[355541028,1741247807102,1374.25,0.00010722,2]
[355541029,1741247886926,600.0,0.0001018,2]
[355541030,1741247949692,150.0,0.00010688,7]
[355541031,1741248073581,159.95,0.00010681,2]
[355541032,1741248118669,1660.94,0.00010809,2]
[355541033,1741248150907,150.0,0.00016107,120]
[355541034,1741248210921,150.0,0.00019954,120]
[355541035,1741248247393,500.0,0.0002,120]
[355541036,1741248259087,1042.59,8.845e-05,2]
[355541037,1741248332878,150.0,0.00019559,120]
[355541038,1741248347301,200.0,0.00010659,2]
[355541040,1741248440695,900.0,0.0002,120]
[355541041,1741248497455,200.0,0.0001,2]
[355541045,1741248631952,-343.28965258,0.00011,2]
[355541046,1741248632080,-206.71034742,0.00011,2]
[355541047,1741248632090,-760.71042507,0.00011108,2]
[355541048,1741248632107,-281.87957493,0.00011108,2]
[355541049,1741248632117,-52.72046846,0.00011151,2]
[355541050,1741248632130,-404.8185284,0.00011151,2]
[355541051,1741248632167,-42.46100314,0.00011151,2]
[355541052,1741248632178,-182.78678648,0.00011215,2]
[355541053,1741248632188,-774.75221038,0.00011261,2]
[355541054,1741248632202,-225.24778962,0.00011261,2]
[355541055,1741248632213,-351.66781282,0.00011327,2]
[355541056,1741248632223,-815.67023922,0.00011423,2]
[355541057,1741248632317,-922.539993,0.00011423,2]
[355541058,1741248632330,-1572.56586778,0.00011423,2]
[355541059,1741248632340,-994.7329,0.0001145,2]
[355541060,1741248632351,-1176.66,0.00011455,2]
[355541061,1741248632361,-2233.39765542,0.00011455,2]
[355541062,1741248632373,-706.92122751,0.00011455,2]
[355541073,1741248637879,-248.17032893,0.00011051,2]
[355541074,1741248637888,-465.63495226,0.00011455,2]
[355541075,1741248637900,-1292.69638675,0.00011455,2]
[355541076,1741248637911,-365.38268448,0.00011455,2]
[355541077,1741248638062,-4012.18709358,0.00011455,2]
[355541078,1741248638072,-1000.0,0.00011456,2]
[355541079,1741248638081,-755.55363664,0.00011456,2]
[355541080,1741248638091,-223.0442,0.00011457,2]
[355541081,1741248638101,-313.6839,0.00011457,2]
[355541082,1741248638113,-307.13821006,0.00011457,2]
[355541083,1741248638123,-5928.00630145,0.0001147,2]
[355541084,1741248638133,-150.0,0.00011479,2]
[355541085,1741248638143,-17369.95605415,0.0001148,2]
[355541086,1741248638242,-8606.42716911,0.0001148,2]
[355541087,1741248638256,-16317.18165786,0.0001148,2]
[355541090,1741248638278,-755.399999,0.0001148,2]
[355541092,1741248638290,-2748.54,0.0001148,2]
[355541095,1741248639985,-2177.27208999,0.0001148,2]
[355541096,1741248639997,-28782.76470792,0.0001148,2]
[355541097,1741248640010,-150.0,0.00011484,2]
[355541098,1741248640020,-511.0,0.00011534,2]
[355541099,1741248640030,-190.83622,0.0001154,2]
[355541100,1741248640040,-600.0,0.0001155,2]
[355541101,1741248640049,-500.0,0.00011555,2]
[355541102,1741248640059,-236.43961449,0.00011555,2]
[355541103,1741248640068,-795.9,0.00011555,2]
[355541104,1741248640078,-532.41,0.00011555,2]
[355541105,1741248640089,-878.76,0.00011555,2]
[355541106,1741248640099,-500.0,0.00011555,2]
[355541107,1741248640113,-1172.62,0.00011555,2]
[355541108,1741248640122,-1521.9,0.00011555,2]
[355541109,1741248640133,-978.28,0.00011555,2]
[355541110,1741248640143,-500.0,0.00011555,2]
[355541111,1741248640152,-1288.47,0.00011555,2]
[355541112,1741248640162,-629.32,0.00011555,2]
[355541113,1741248640173,-716.82,0.00011555,2]
[355541114,1741248640189,-500.0,0.00011555,2]
[355541115,1741248640200,-1178.91,0.00011555,2]
[355541116,1741248640210,-500.0,0.00011555,2]
[355541117,1741248640220,-1282.19,0.00011555,2]
[355541118,1741248640230,-768.56,0.00011555,2]
[355541119,1741248640239,-626.76,0.00011555,2]
[355541120,1741248640249,-3071.81,0.00011555,2]
[355541121,1741248640260,-1168.82,0.00011555,2]
[355541122,1741248640270,-938.87,0.00011555,2]
[355541123,1741248640280,-500.0,0.00011555,2]
[355541124,1741248640290,-500.0,0.00011555,2]
[355541125,1741248640299,-500.0,0.00011555,2]
[355541126,1741248640308,-706.25,0.00011555,2]
[355541127,1741248640318,-4793.69,0.00011555,2]
[355541128,1741248640327,-500.0,0.00011555,2]
[355541129,1741248640337,-586.29,0.00011555,2]
[355541130,1741248640346,-500.0,0.00011555,2]
[355541131,1741248640356,-500.0,0.00011555,2]
[355541132,1741248640366,-951.79,0.00011555,2]
[355541133,1741248640378,-1455.01,0.00011555,2]
[355541134,1741248640388,-703.39,0.00011555,2]
[355541135,1741248640398,-851.2,0.00011555,2]
[355541136,1741248640408,-500.0,0.00011555,2]
[355541137,1741248640418,-500.0,0.00011556,2]
[355541138,1741248640428,-500.0,0.00011556,2]
[355541139,1741248640438,-500.0,0.00011556,2]
[355541140,1741248640448,-529.23,0.00011556,2]
[355541141,1741248640458,-509.47769251,0.00011556,2]
[355541142,1741248640468,-253.47230545,0.00011556,2]
[355541143,1741248640477,-500.0,0.00011556,2]
[355541144,1741248640486,-508.01700034,0.00011556,2]
[355541145,1741248640498,-500.0,0.00011556,2]
[355541146,1741248640509,-500.0,0.00011556,2]
[355541147,1741248640519,-500.0,0.00011556,2]
[355541148,1741248640529,-500.0,0.00011556,2]
[355541149,1741248640539,-500.0,0.00011556,2]
[355541150,1741248640549,-500.0,0.00011556,2]
[355541151,1741248640559,-500.0,0.00011556,2]
[355541152,1741248640568,-500.0,0.00011556,2]
[355541153,1741248640578,-500.0,0.00011556,2]
[355541154,1741248640588,-501.53282014,0.00011556,2]
[355541155,1741248640597,-500.0,0.00011556,2]
[355541156,1741248640607,-388.04657476,0.00011556,2]
[355541157,1741248640617,-448.45,0.00011556,2]
[355541158,1741248640627,-500.0,0.00011556,2]
[355541159,1741248640637,-619.73,0.00011556,2]
[355541160,1741248640646,-500.0,0.00011556,2]
[355541161,1741248640656,-502.94830182,0.00011556,2]
[355541162,1741248640665,-500.0,0.00011556,2]
[355541163,1741248640675,-500.0,0.00011556,2]
[355541164,1741248640684,-687.4,0.00011556,2]
[355541165,1741248640693,-500.0,0.00011556,2]
[355541166,1741248640703,-500.0,0.00011556,2]
[355541167,1741248640712,-500.0,0.00011556,2]
[355541168,1741248640722,-502.59084184,0.00011556,2]
[355541169,1741248640731,-500.0,0.00011556,2]
[355541170,1741248640741,-511.33846359,0.00011556,2]
[355541171,1741248640751,-500.0,0.00011556,2]
[355541172,1741248640761,-500.0,0.00011556,2]
[355541173,1741248640771,-510.4279021,0.00011556,2]
[355541174,1741248640782,-500.0,0.00011556,2]
[355541175,1741248640792,-508.77300908,0.00011556,2]
[355541176,1741248640802,-500.0,0.00011556,2]
[355541177,1741248640812,-503.09521003,0.00011556,2]
[355541178,1741248640822,-500.0,0.00011556,2]
[355541179,1741248640832,-500.0,0.00011556,2]
[355541180,1741248640841,-500.0,0.00011556,2]
[355541181,1741248640851,-500.0,0.00011556,2]
[355541182,1741248640860,-500.0,0.00011556,2]
[355541183,1741248640870,-500.0,0.00011556,2]
[355541184,1741248640878,-500.771462,0.00011556,2]
[355541185,1741248640893,-500.0,0.00011556,2]
[355541186,1741248640903,-500.0,0.00011556,2]
[355541187,1741248640912,-500.0,0.00011556,2]
[355541188,1741248640922,-548.47633026,0.00011556,2]
[355541189,1741248641158,-532.19,0.00011556,2]
[355541190,1741248641169,-500.0,0.00011556,2]
[355541191,1741248641179,-500.0,0.00011556,2]
[355541192,1741248641189,-500.0,0.00011556,2]
[355541193,1741248641199,-500.0,0.00011556,2]
[355541194,1741248641209,-500.0,0.00011556,2]
[355541195,1741248641219,-500.0,0.00011556,2]
[355541196,1741248641228,-500.0,0.00011556,2]
[355541197,1741248641238,-500.0,0.00011556,2]
[355541198,1741248641248,-500.0,0.00011556,2]
[355541199,1741248641259,-500.0,0.00011556,2]
[355541200,1741248641269,-213.51045595,0.00011556,2]
[355541201,1741248641279,-500.0,0.00011556,2]
[355541202,1741248641289,-500.0,0.00011556,2]
[355541203,1741248641298,-502.10525125,0.00011556,2]
[355541204,1741248641309,-500.0,0.00011556,2]
[355541205,1741248641319,-500.0,0.00011556,2]
[355541206,1741248641329,-500.0,0.00011556,2]
[355541207,1741248641339,-500.0,0.00011556,2]
[355541208,1741248641349,-500.0,0.00011556,2]
[355541209,1741248641359,-555.89,0.00011556,2]
[355541210,1741248641369,-500.0,0.00011556,2]
[355541211,1741248641380,-260.76993512,0.00011556,2]
[355541212,1741248641390,-501.50999998,0.00011556,2]
[355541213,1741248641399,-500.0,0.00011556,2]
[355541214,1741248641411,-628.01,0.00011556,2]
[355541215,1741248641421,-500.0,0.00011556,2]
[355541216,1741248641431,-500.0,0.00011556,2]
[355541217,1741248641440,-500.0,0.00011556,2]
[355541218,1741248641450,-500.0,0.00011556,2]
[355541219,1741248641460,-600.36,0.00011556,2]
[355541220,1741248641470,-500.0,0.00011556,2]
[355541221,1741248641480,-790.243853,0.00011556,2]
[355541222,1741248641491,-285.09234435,0.00011556,2]
[355541223,1741248641501,-500.0,0.00011556,2]
[355541224,1741248641512,-500.0,0.00011556,2]
[355541225,1741248641522,-500.0,0.00011556,2]
[355541226,1741248641531,-500.0,0.00011556,2]
[355541227,1741248641541,-1329.699166,0.00011556,2]
[355541228,1741248641551,-500.0,0.00011556,2]
[355541229,1741248641560,-726.6,0.00011556,2]
[355541230,1741248641570,-162.866886,0.00011556,2]
[355541231,1741248641580,-500.0,0.00011556,2]
[355541232,1741248641590,-500.0,0.00011556,2]
[355541233,1741248641599,-500.0,0.00011556,2]
[355541234,1741248641609,-500.0,0.00011556,2]
[355541235,1741248641618,-565.13,0.00011556,2]
[355541236,1741248641628,-500.0,0.00011556,2]
[355541237,1741248641637,-500.0,0.00011556,2]
[355541238,1741248641647,-500.0,0.00011556,2]
[355541239,1741248641656,-536.76,0.00011556,2]
[355541240,1741248641666,-755.65,0.00011556,2]
[355541241,1741248641675,-500.0,0.00011556,2]
[355541242,1741248641686,-500.0,0.00011556,2]
[355541243,1741248641694,-500.0,0.00011556,2]
[355541244,1741248641703,-500.0,0.00011556,2]
[355541245,1741248641713,-500.0,0.00011556,2]
[355541246,1741248641722,-500.0,0.00011556,2]
[355541247,1741248641732,-365.66296911,0.00011556,2]
[355541248,1741248641742,-500.0,0.00011556,2]
[355541249,1741248641753,-832.21,0.00011556,2]
[355541250,1741248641762,-500.0,0.00011556,2]
[355541251,1741248641772,-500.0,0.00011556,2]
[355541252,1741248641783,-500.0,0.00011556,2]
[355541253,1741248641793,-500.0,0.00011556,2]
[355541254,1741248641803,-500.0,0.00011556,2]
[355541255,1741248641813,-500.0,0.00011556,2]
[355541256,1741248641822,-500.0,0.00011556,2]
[355541257,1741248641831,-500.0,0.00011556,2]
[355541258,1741248641842,-500.0,0.00011556,2]
[355541259,1741248641853,-500.0,0.00011556,2]
[355541260,1741248641862,-500.0,0.00011556,2]
[355541261,1741248641872,-500.0,0.00011556,2]
[355541262,1741248641882,-826.15,0.00011556,2]
[355541263,1741248641891,-500.0,0.00011556,2]
[355541264,1741248641901,-500.0,0.00011556,2]
[355541265,1741248641911,-807.46,0.00011556,2]
[355541266,1741248641921,-500.0,0.00011556,2]
[355541267,1741248641931,-500.0,0.00011556,2]
[355541268,1741248641941,-500.0,0.00011556,2]
[355541269,1741248641951,-500.0,0.00011556,2]
[355541270,1741248641961,-500.0,0.00011556,2]
[355541271,1741248641971,-500.0,0.00011556,2]
[355541272,1741248641981,-500.0,0.00011556,2]
[355541273,1741248641991,-500.0,0.00011556,2]
[355541274,1741248642003,-500.0,0.00011556,2]
[355541275,1741248642012,-687.18,0.00011556,2]
[355541276,1741248642022,-500.0,0.00011556,2]
[355541277,1741248642034,-500.0,0.00011556,2]
[355541278,1741248642044,-703.45,0.00011556,2]
[355541279,1741248642055,-533.77046866,0.00011556,2]
[355541280,1741248642065,-843.41,0.00011556,2]
[355541281,1741248642075,-500.0,0.00011556,2]
[355541282,1741248642085,-500.0,0.00011556,2]
[355541283,1741248642095,-500.0,0.00011556,2]
[355541284,1741248642109,-500.0,0.00011556,2]
[355541285,1741248642119,-500.0,0.00011556,2]
[355541286,1741248642130,-500.0,0.00011556,2]
[355541287,1741248642140,-500.0,0.00011556,2]
[355541288,1741248642150,-500.0,0.00011556,2]
[355541289,1741248642160,-500.0,0.00011556,2]
[355541290,1741248642171,-500.0,0.00011556,2]
[355541291,1741248642182,-500.0,0.00011556,2]
[355541292,1741248642192,-500.0,0.00011556,2]
[355541293,1741248642202,-709.73,0.00011556,2]
[355541294,1741248642212,-500.0,0.00011556,2]
[355541295,1741248642222,-363.7241232,0.00011556,2]
[355541296,1741248642249,-136.2758768,0.00011556,2]
[355541297,1741248642260,-752.64,0.00011556,2]
[355541298,1741248642270,-509.20070109,0.00011556,2]
[355541299,1741248642280,-500.0,0.00011556,2]
[355541300,1741248642290,-530.92,0.00011556,2]
[355541301,1741248642300,-510.43079893,0.00011556,2]
[355541302,1741248642310,-500.0,0.00011556,2]
[355541303,1741248642320,-500.0,0.00011556,2]
[355541304,1741248642330,-500.0,0.00011556,2]
[355541305,1741248642340,-500.0,0.00011556,2]
[355541306,1741248642350,-500.0,0.00011556,2]